[Event "*** Titled Tuesday Blitz"]
[Site "Chess.com"]
[Date "2020.05.05"]
[Round "5"]
[White "Maksimus1998"]
[Black "floplover"]
[Result "1-0"]
[WhiteElo "2474"]
[BlackElo "2272"]
[TimeControl "180+1"]
[EndTime "11:00:07 PDT"]
[Termination "Maksimus1998 won on time"]

1. c4 {[%clk 0:02:54.3]} 1... Nf6 {[%clk 0:00:38.2]} 2. Nc3 {[%clk 0:02:32]}
2... e6 {[%clk 0:00:38.8]} 3. e4 {[%clk 0:02:31.7]} 3... d5 {[%clk 0:00:38.5]}
4. cxd5 {[%clk 0:02:32.6]} 4... exd5 {[%clk 0:00:38.6]} 5. e5 {[%clk 0:02:33.3]}
5... Ne4 {[%clk 0:00:38.7]} 6. d4 {[%clk 0:02:33.7]} 6... Nxc3 {[%clk
0:00:37.8]} 7. bxc3 {[%clk 0:02:33.5]} 7... c5 {[%clk 0:00:38.2]} 8. Bd3 {[%clk
0:02:31.7]} 8... Nc6 {[%clk 0:00:38.3]} 9. Ne2 {[%clk 0:02:31.1]} 9... Be7
{[%clk 0:00:31.2]} 10. O-O {[%clk 0:02:30.5]} 10... O-O {[%clk 0:00:30.5]} 11.
Rb1 {[%clk 0:02:27.5]} 11... c4 {[%clk 0:00:26.3]} 12. Bc2 {[%clk 0:02:25.8]}
12... a6 {[%clk 0:00:24.1]} 13. Be3 {[%clk 0:02:24.1]} 13... b5 {[%clk
0:00:22.9]} 14. Ng3 {[%clk 0:02:20.3]} 14... Rb8 {[%clk 0:00:21.2]} 15. f4
{[%clk 0:02:20]} 15... a5 {[%clk 0:00:20.2]} 16. f5 {[%clk 0:02:20.2]} 16... Bg5
{[%clk 0:00:20.1]} 17. Bxg5 {[%clk 0:02:11.4]} 17... Qxg5 {[%clk 0:00:21]} 18.
f6 {[%clk 0:02:12.2]} 18... gxf6 {[%clk 0:00:20.4]} 19. exf6 {[%clk 0:02:07.1]}
19... Bg4 {[%clk 0:00:20.4]} 20. Qc1 {[%clk 0:01:48]} 20... Qxc1 {[%clk
0:00:19.7]} 21. Rfxc1 {[%clk 0:01:47.6]} 21... b4 {[%clk 0:00:20.6]} 22. Ba4
{[%clk 0:01:46.9]} 22... Rfc8 {[%clk 0:00:18.5]} 23. h3 {[%clk 0:01:46.2]} 23...
Bd7 {[%clk 0:00:17.3]} 24. Bxc6 {[%clk 0:01:45.1]} 24... Rxc6 {[%clk 0:00:16.8]}
25. Nh5 {[%clk 0:01:43.4]} 25... Rcb6 {[%clk 0:00:16.6]} 26. Nf4 {[%clk
0:01:43.2]} 26... Be6 {[%clk 0:00:14.1]} 27. Kf2 {[%clk 0:01:39.5]} 27... bxc3
{[%clk 0:00:13.9]} 28. Rxb6 {[%clk 0:01:39.5]} 28... Rxb6 {[%clk 0:00:14.8]} 29.
Ke3 {[%clk 0:01:36.2]} 29... Rb2 {[%clk 0:00:13.4]} 30. a3 {[%clk 0:01:35.2]}
30... Rb3 {[%clk 0:00:12.8]} 31. a4 {[%clk 0:01:33.1]} 31... Rb4 {[%clk
0:00:12.5]} 32. Ne2 {[%clk 0:01:26.7]} 32... Rxa4 {[%clk 0:00:12.2]} 33. Nxc3
{[%clk 0:01:27.5]} 33... Rb4 {[%clk 0:00:12.7]} 34. Ra1 {[%clk 0:01:26.7]} 34...
Rb3 {[%clk 0:00:13]} 35. Kd2 {[%clk 0:01:26.9]} 35... Rb2+ {[%clk 0:00:13]} 36.
Ke3 {[%clk 0:01:27.3]} 36... Rxg2 {[%clk 0:00:13.9]} 37. Rxa5 {[%clk 0:01:26.7]}
37... Rg3+ {[%clk 0:00:14.1]} 38. Kd2 {[%clk 0:01:27.1]} 38... h6 {[%clk
0:00:13.9]} 39. Nxd5 {[%clk 0:01:27]} 39... Rd3+ {[%clk 0:00:12.4]} 40. Ke2
{[%clk 0:01:25.5]} 40... Rxd4 {[%clk 0:00:13.3]} 41. Ne7+ {[%clk 0:01:24]} 41...
Kh7 {[%clk 0:00:13.5]} 42. Rc5 {[%clk 0:01:22.5]} 42... Rf4 {[%clk 0:00:13.4]}
43. Ke3 {[%clk 0:01:13.2]} 43... Rxf6 {[%clk 0:00:13.5]} 44. Rc7 {[%clk
0:01:14]} 44... Rf1 {[%clk 0:00:12.4]} 45. Nc6 {[%clk 0:01:13.3]} 45... Rh1
{[%clk 0:00:12.4]} 46. Ne5 {[%clk 0:01:10.9]} 46... Rxh3+ {[%clk 0:00:12.4]} 47.
Kf4 {[%clk 0:01:11.8]} 47... Kg7 {[%clk 0:00:12.8]} 48. Nc6 {[%clk 0:01:07.5]}
48... Rd3 {[%clk 0:00:11.7]} 49. Ke5 {[%clk 0:01:06.9]} 49... c3 {[%clk
0:00:11.2]} 50. Nd4 {[%clk 0:01:06.2]} 50... Re3+ {[%clk 0:00:10]} 51. Kf4
{[%clk 0:01:06.4]} 51... Rd3 {[%clk 0:00:10.4]} 52. Nxe6+ {[%clk 0:01:06.3]}
52... Kf6 {[%clk 0:00:09.6]} 53. Nc5 {[%clk 0:01:06.4]} 53... Rd1 {[%clk
0:00:08.1]} 54. Ne4+ {[%clk 0:01:06.6]} 54... Ke6 {[%clk 0:00:08.1]} 55. Rc6+
{[%clk 0:01:06.5]} 55... Kd7 {[%clk 0:00:08]} 56. Rxc3 {[%clk 0:01:06.4]} 56...
Rd4 {[%clk 0:00:07.5]} 57. Ke5 {[%clk 0:01:06.4]} 57... Rd1 {[%clk 0:00:07.6]}
58. Rh3 {[%clk 0:01:06.5]} 58... h5 {[%clk 0:00:06.8]} 59. Rxh5 {[%clk 0:01:06]}
59... Ra1 {[%clk 0:00:07.7]} 60. Rh7 {[%clk 0:01:05.1]} 60... Ke7 {[%clk
0:00:07.5]} 61. Rh8 {[%clk 0:01:01.9]} 61... Ra5+ {[%clk 0:00:07.4]} 62. Kf4
{[%clk 0:01:02.4]} 62... Ra1 {[%clk 0:00:08.3]} 63. Rb8 {[%clk 0:01:02.3]} 63...
Ra2 {[%clk 0:00:08.4]} 64. Rb7+ {[%clk 0:01:02.1]} 64... Ke6 {[%clk 0:00:08.1]}
65. Ng5+ {[%clk 0:01:02.1]} 65... Kd6 {[%clk 0:00:07.7]} 66. Nxf7+ {[%clk
0:01:02]} 66... Kc6 {[%clk 0:00:07.2]} 67. Re7 {[%clk 0:01:01.7]} 67... Ra4+
{[%clk 0:00:07.2]} 68. Kf5 {[%clk 0:01:01.7]} 68... Ra5+ {[%clk 0:00:07.2]} 69.
Ne5+ {[%clk 0:01:02.2]} 69... Kd6 {[%clk 0:00:06.7]} 70. Rd7+ {[%clk 0:01:01.4]}
70... Kc5 {[%clk 0:00:03.2]} 71. Rd8 {[%clk 0:01:01.5]} 71... Kb4 {[%clk
0:00:03.1]} 72. Ke4 {[%clk 0:01:01.7]} 72... Ra1 {[%clk 0:00:02.7]} 73. Kd4
{[%clk 0:01:01.1]} 73... Rd1+ {[%clk 0:00:02]} 74. Nd3+ {[%clk 0:01:02]} 74...
Kb5 {[%clk 0:00:01.6]} 75. Rc8 {[%clk 0:01:02]} 75... Ka6 {[%clk 0:00:02]} 76.
Rb8 {[%clk 0:01:01.8]} 76... Rh1 {[%clk 0:00:02.9]} 77. Kc4 {[%clk 0:01:01]}
77... Ka7 {[%clk 0:00:03.8]} 78. Rb2 {[%clk 0:01:00.5]} 78... Rh4+ {[%clk
0:00:04.3]} 79. Kd5 {[%clk 0:00:59.2]} 79... Rh3 {[%clk 0:00:05.2]} 80. Ne5
{[%clk 0:00:57.7]} 80... Rh5 {[%clk 0:00:05.5]} 81. Kd6 {[%clk 0:00:58]} 81...
Rh6+ {[%clk 0:00:05.4]} 82. Kc7 {[%clk 0:00:58.2]} 82... Rh7+ {[%clk 0:00:05.6]}
83. Nd7 {[%clk 0:00:58.5]} 83... Ka6 {[%clk 0:00:06]} 84. Kc6 {[%clk 0:00:57.2]}
84... Ka5 {[%clk 0:00:06.3]} 85. Nb6 {[%clk 0:00:49.6]} 85... Rh6+ {[%clk
0:00:06.3]} 86. Kc5 {[%clk 0:00:50.2]} 86... Rh5+ {[%clk 0:00:06.6]} 87. Nd5
{[%clk 0:00:50.7]} 87... Ka6 {[%clk 0:00:06]} 88. Rd2 {[%clk 0:00:49.5]} 88...
Kb7 {[%clk 0:00:05.5]} 89. Kd6 {[%clk 0:00:49]} 89... Rh6+ {[%clk 0:00:05.7]}
90. Kc5 {[%clk 0:00:48.9]} 90... Rh5 {[%clk 0:00:06.1]} 91. Rb2+ {[%clk
0:00:48.6]} 91... Kc8 {[%clk 0:00:05.6]} 92. Rb6 {[%clk 0:00:46]} 92... Rg5
{[%clk 0:00:05.1]} 93. Rh6 {[%clk 0:00:44.1]} 93... Rg1 {[%clk 0:00:04.7]} 94.
Kd6 {[%clk 0:00:43.6]} 94... Rd1 {[%clk 0:00:04.2]} 95. Rh7 {[%clk 0:00:43.8]}
95... Kb8 {[%clk 0:00:03.9]} 96. Rd7 {[%clk 0:00:41.5]} 96... Rc1 {[%clk
0:00:03.2]} 97. Nb4 {[%clk 0:00:40.8]} 97... Rd1+ {[%clk 0:00:03.1]} 98. Nd5
{[%clk 0:00:40.2]} 98... Rc1 {[%clk 0:00:03.5]} 99. Re7 {[%clk 0:00:40.2]} 99...
Rd1 {[%clk 0:00:03.6]} 100. Kc6 {[%clk 0:00:37.2]} 100... Rc1+ {[%clk
0:00:03.9]} 101. Kd7 {[%clk 0:00:37]} 101... Rd1 {[%clk 0:00:04.1]} 102. Re5
{[%clk 0:00:37.3]} 102... Rc1 {[%clk 0:00:04.2]} 103. Ne7 {[%clk 0:00:37]}
103... Rd1+ {[%clk 0:00:04.4]} 104. Kc6 {[%clk 0:00:36.5]} 104... Rc1+ {[%clk
0:00:03.6]} 105. Kd6 {[%clk 0:00:37]} 105... Rd1+ {[%clk 0:00:03.8]} 106. Nd5
{[%clk 0:00:37.7]} 106... Kb7 {[%clk 0:00:03.7]} 107. Re7+ {[%clk 0:00:37.9]}
107... Kb8 {[%clk 0:00:04]} 108. Re8+ {[%clk 0:00:36.7]} 108... Kb7 {[%clk
0:00:03.9]} 109. Re4 {[%clk 0:00:34.8]} 109... Rc1 {[%clk 0:00:03.6]} 110. Rb4+
{[%clk 0:00:34.6]} 110... Kc8 {[%clk 0:00:03.9]} 111. Ne7+ {[%clk 0:00:34.3]}
111... Kd8 {[%clk 0:00:02.5]} 112. Rb8+ {[%clk 0:00:34.6]} 1-0

[Event "*** Titled Tuesday Blitz"]
[Site "Chess.com"]
[Date "2020.05.05"]
[Round "6"]
[White "wonderfultime"]
[Black "Grischuk"]
[Result "1/2-1/2"]
[WhiteElo "2933"]
[BlackElo "3118"]
[TimeControl "180+1"]
[EndTime "11:01:53 PDT"]
[Termination "Game drawn by repetition"]

1. d4 {[%clk 0:03:00.9]} 1... Nf6 {[%clk 0:03:00.3]} 2. Nf3 {[%clk 0:03:00.4]}
2... g6 {[%clk 0:03:00.6]} 3. Bg5 {[%clk 0:03:00.7]} 3... Bg7 {[%clk 0:03:00]}
4. Nbd2 {[%clk 0:03:01.3]} 4... d5 {[%clk 0:02:59.1]} 5. c3 {[%clk 0:03:00.1]}
5... O-O {[%clk 0:02:59]} 6. e3 {[%clk 0:03:00.6]} 6... c5 {[%clk 0:02:59.2]} 7.
Bd3 {[%clk 0:03:00.3]} 7... h6 {[%clk 0:02:50.9]} 8. Bh4 {[%clk 0:02:59.2]} 8...
Qb6 {[%clk 0:02:47.1]} 9. Rb1 {[%clk 0:02:54.1]} 9... cxd4 {[%clk 0:02:35.7]}
10. exd4 {[%clk 0:02:52]} 10... Qe6+ {[%clk 0:02:29.9]} 11. Be2 {[%clk
0:02:43.5]} 11... Qb6 {[%clk 0:02:30]} 12. Bd3 {[%clk 0:02:40.9]} 12... Qe6+
{[%clk 0:02:28.3]} 13. Be2 {[%clk 0:02:41.2]} 13... Qb6 {[%clk 0:02:28.4]} 14.
Bd3 {[%clk 0:02:41.7]} 1/2-1/2

[Event "*** Titled Tuesday Blitz"]
[Site "Chess.com"]
[Date "2020.05.05"]
[Round "6"]
[White "Natalya_Buksa"]
[Black "InitiatingASC"]
[Result "1-0"]
[WhiteElo "2492"]
[BlackElo "2320"]
[TimeControl "180+1"]
[EndTime "11:02:13 PDT"]
[Termination "Natalya_Buksa won by resignation"]

1. d4 {[%clk 0:03:00.9]} 1... d5 {[%clk 0:02:57]} 2. Nc3 {[%clk 0:03:01.2]} 2...
Nf6 {[%clk 0:02:54.5]} 3. Bf4 {[%clk 0:03:01.7]} 3... Bf5 {[%clk 0:02:50.5]} 4.
e3 {[%clk 0:03:01.5]} 4... c6 {[%clk 0:02:47.4]} 5. f3 {[%clk 0:03:01.2]} 5...
e6 {[%clk 0:02:45]} 6. g4 {[%clk 0:03:01.2]} 6... Bg6 {[%clk 0:02:45.4]} 7. h4
{[%clk 0:03:02.1]} 7... h6 {[%clk 0:02:39]} 8. Bd3 {[%clk 0:03:00.6]} 8... Bd6
{[%clk 0:02:31.6]} 9. Bxg6 {[%clk 0:02:58.6]} 9... fxg6 {[%clk 0:02:29.5]} 10.
Nge2 {[%clk 0:02:58.1]} 10... Qc7 {[%clk 0:02:24.3]} 11. Qd3 {[%clk 0:02:57.9]}
11... Kf7 {[%clk 0:02:13.3]} 12. Bxd6 {[%clk 0:02:57.5]} 12... Qxd6 {[%clk
0:02:13.2]} 13. Nf4 {[%clk 0:02:58.4]} 13... Re8 {[%clk 0:01:56.6]} 14. Qxg6+
{[%clk 0:02:57.3]} 14... Kg8 {[%clk 0:01:56.6]} 15. g5 {[%clk 0:02:57.6]} 1-0

[Event "*** Titled Tuesday Blitz"]
[Site "Chess.com"]
[Date "2020.05.05"]
[Round "6"]
[White "Megagigahiper3345"]
[Black "bakki78"]
[Result "1-0"]
[WhiteElo "2540"]
[BlackElo "2712"]
[TimeControl "180+1"]
[EndTime "11:02:18 PDT"]
[Termination "Megagigahiper3345 won by resignation"]

1. d4 {[%clk 0:02:36.3]} 1... Nf6 {[%clk 0:02:59.2]} 2. c4 {[%clk 0:02:35.1]}
2... g6 {[%clk 0:02:59]} 3. Nc3 {[%clk 0:02:31.3]} 3... Bg7 {[%clk 0:02:59.4]}
4. e4 {[%clk 0:02:31]} 4... d6 {[%clk 0:02:59]} 5. Be2 {[%clk 0:02:31.5]} 5...
O-O {[%clk 0:02:58.7]} 6. Be3 {[%clk 0:02:32.1]} 6... c6 {[%clk 0:02:54.6]} 7.
g4 {[%clk 0:02:30.7]} 7... a6 {[%clk 0:02:53.4]} 8. g5 {[%clk 0:02:30.6]} 8...
Ne8 {[%clk 0:02:53.3]} 9. h4 {[%clk 0:02:30.4]} 9... b5 {[%clk 0:02:53]} 10. h5
{[%clk 0:02:25.6]} 10... b4 {[%clk 0:02:53.2]} 11. Na4 {[%clk 0:02:25.5]} 11...
Qa5 {[%clk 0:02:53]} 12. b3 {[%clk 0:02:25.8]} 12... Bd7 {[%clk 0:02:47.4]} 13.
hxg6 {[%clk 0:02:24.5]} 13... fxg6 {[%clk 0:02:46]} 14. Bg4 {[%clk 0:02:25]}
14... Rf7 {[%clk 0:02:44.9]} 15. Bxd7 {[%clk 0:02:22.1]} 15... Nxd7 {[%clk
0:02:44.6]} 16. Qg4 {[%clk 0:02:22.7]} 16... Nf8 {[%clk 0:02:44.6]} 17. O-O-O
{[%clk 0:02:18.9]} 17... Rc8 {[%clk 0:02:40.9]} 18. Qxc8 {[%clk 0:02:15.8]} 1-0

[Event "*** Titled Tuesday Blitz"]
[Site "Chess.com"]
[Date "2020.05.05"]
[Round "6"]
[White "Khamrakulov_Djurabek"]
[Black "pedromartinez91"]
[Result "1-0"]
[WhiteElo "2808"]
[BlackElo "2523"]
[TimeControl "180+1"]
[EndTime "11:02:25 PDT"]
[Termination "Khamrakulov_Djurabek won by resignation"]

1. e4 {[%clk 0:02:22.6]} 1... e6 {[%clk 0:02:59.4]} 2. d4 {[%clk 0:02:22.4]}
2... d5 {[%clk 0:03:00.1]} 3. Nd2 {[%clk 0:02:23.1]} 3... Nf6 {[%clk 0:03:00.6]}
4. e5 {[%clk 0:02:21.7]} 4... Nfd7 {[%clk 0:02:59.5]} 5. Bd3 {[%clk 0:02:21.2]}
5... c5 {[%clk 0:03:00]} 6. c3 {[%clk 0:02:21.7]} 6... Nc6 {[%clk 0:03:00.6]} 7.
Ne2 {[%clk 0:02:22.2]} 7... cxd4 {[%clk 0:03:01.1]} 8. cxd4 {[%clk 0:02:23.1]}
8... f6 {[%clk 0:03:01.6]} 9. Nf4 {[%clk 0:02:22.3]} 9... Nxd4 {[%clk
0:02:54.8]} 10. Qh5+ {[%clk 0:02:21.7]} 10... Ke7 {[%clk 0:02:52.3]} 11. Ng6+
{[%clk 0:02:21.9]} 11... hxg6 {[%clk 0:02:51.9]} 12. exf6+ {[%clk 0:02:22.4]}
12... Kxf6 {[%clk 0:02:39.8]} 13. Qxh8 {[%clk 0:02:23.3]} 13... Nc5 {[%clk
0:02:38.7]} 14. Qh4+ {[%clk 0:02:21.1]} 14... g5 {[%clk 0:02:36.1]} 15. Qxd4+
{[%clk 0:02:20.2]} 15... e5 {[%clk 0:02:36.2]} 16. Qe3 {[%clk 0:02:20.1]} 16...
d4 {[%clk 0:02:22.9]} 1-0

[Event "*** Titled Tuesday Blitz"]
[Site "Chess.com"]
[Date "2020.05.05"]
[Round "6"]
[White "tgpgoat"]
[Black "Kimster98"]
[Result "1/2-1/2"]
[WhiteElo "2107"]
[BlackElo "2526"]
[TimeControl "180+1"]
[EndTime "11:02:52 PDT"]
[Termination "Game drawn by repetition"]

1. e4 {[%clk 0:03:00.9]} 1... c5 {[%clk 0:02:58.9]} 2. Nf3 {[%clk 0:02:57.8]}
2... e6 {[%clk 0:02:59.2]} 3. d4 {[%clk 0:02:55.7]} 3... cxd4 {[%clk 0:03:00]}
4. Nxd4 {[%clk 0:02:56.6]} 4... Nf6 {[%clk 0:03:00.6]} 5. Nc3 {[%clk 0:02:56.4]}
5... Nc6 {[%clk 0:03:01.1]} 6. Be3 {[%clk 0:02:56]} 6... Bb4 {[%clk 0:03:00.6]}
7. Bd3 {[%clk 0:02:55.2]} 7... d5 {[%clk 0:02:59.8]} 8. exd5 {[%clk 0:02:52.5]}
8... Nxd5 {[%clk 0:02:58.8]} 9. Nxc6 {[%clk 0:02:52.2]} 9... bxc6 {[%clk
0:02:59.7]} 10. Bd2 {[%clk 0:02:52.1]} 10... Qa5 {[%clk 0:02:58]} 11. Nxd5
{[%clk 0:02:51.4]} 11... Bxd2+ {[%clk 0:02:58.4]} 12. Qxd2 {[%clk 0:02:52.3]}
12... Qxd2+ {[%clk 0:02:59.3]} 13. Kxd2 {[%clk 0:02:53]} 13... cxd5 {[%clk
0:02:56.7]} 14. Rhe1 {[%clk 0:02:53.1]} 14... O-O {[%clk 0:02:54.3]} 15. Rad1
{[%clk 0:02:51.6]} 15... a5 {[%clk 0:02:51.4]} 16. a4 {[%clk 0:02:51.2]} 16...
Ba6 {[%clk 0:02:50]} 17. b3 {[%clk 0:02:51.3]} 17... Rfc8 {[%clk 0:02:46.9]} 18.
Re3 {[%clk 0:02:49.8]} 18... Rc5 {[%clk 0:02:37.4]} 19. Bxa6 {[%clk 0:02:48.3]}
19... Rxa6 {[%clk 0:02:38.3]} 20. Rc3 {[%clk 0:02:48.4]} 20... Rac6 {[%clk
0:02:37.1]} 21. Rxc5 {[%clk 0:02:48.2]} 21... Rxc5 {[%clk 0:02:38]} 22. Re1
{[%clk 0:02:48.4]} 22... Kf8 {[%clk 0:02:37.2]} 23. c3 {[%clk 0:02:47.4]} 23...
Ke7 {[%clk 0:02:31.3]} 24. b4 {[%clk 0:02:44.5]} 24... Rc4 {[%clk 0:02:31.6]}
25. Rb1 {[%clk 0:02:43]} 25... d4 {[%clk 0:02:27.3]} 26. cxd4 {[%clk 0:02:31.4]}
26... axb4 {[%clk 0:02:26.5]} 27. Kd3 {[%clk 0:02:31.4]} 27... Rc3+ {[%clk
0:02:25.8]} 28. Kd2 {[%clk 0:02:31.5]} 28... Rc4 {[%clk 0:02:26.3]} 29. Kd3
{[%clk 0:02:26.6]} 29... Rc3+ {[%clk 0:02:26.3]} 30. Kd2 {[%clk 0:02:26.9]}
30... Rc4 {[%clk 0:02:22.9]} 1/2-1/2

[Event "*** Titled Tuesday Blitz"]
[Site "Chess.com"]
[Date "2020.05.05"]
[Round "6"]
[White "anon219"]
[Black "bait_or_mate"]
[Result "0-1"]
[WhiteElo "2748"]
[BlackElo "2535"]
[TimeControl "180+1"]
[EndTime "11:02:56 PDT"]
[Termination "bait_or_mate won by resignation"]

1. e4 {[%clk 0:03:00.9]} 1... c5 {[%clk 0:02:59.8]} 2. Nf3 {[%clk 0:03:01.1]}
2... e6 {[%clk 0:02:59.7]} 3. b3 {[%clk 0:03:00.4]} 3... a6 {[%clk 0:02:58.9]}
4. c4 {[%clk 0:02:59.2]} 4... Nc6 {[%clk 0:02:58.7]} 5. Bb2 {[%clk 0:02:58.4]}
5... Qc7 {[%clk 0:02:47.6]} 6. d4 {[%clk 0:02:55.9]} 6... cxd4 {[%clk
0:02:47.2]} 7. Nxd4 {[%clk 0:02:56.8]} 7... Bb4+ {[%clk 0:02:45.1]} 8. Nc3
{[%clk 0:02:55.7]} 8... Nf6 {[%clk 0:02:44.3]} 9. g3 {[%clk 0:02:54.5]} 9...
Nxe4 {[%clk 0:02:43.9]} 10. Qd3 {[%clk 0:02:27.2]} 10... Qe5 {[%clk 0:02:16.5]}
11. Nxc6 {[%clk 0:02:26.2]} 11... bxc6 {[%clk 0:02:04.2]} 12. f4 {[%clk
0:02:22.4]} 12... Bxc3+ {[%clk 0:02:03]} 13. Ke2 {[%clk 0:02:19.9]} 13... Qh5+
{[%clk 0:01:51.5]} 0-1

[Event "*** Titled Tuesday Blitz"]
[Site "Chess.com"]
[Date "2020.05.05"]
[Round "6"]
[White "wanyaland"]
[Black "GianmarcoVaR"]
[Result "1-0"]
[WhiteElo "2339"]
[BlackElo "2533"]
[TimeControl "180+1"]
[EndTime "11:03:03 PDT"]
[Termination "wanyaland won by resignation"]

1. d4 {[%clk 0:03:00.9]} 1... Nf6 {[%clk 0:02:23.4]} 2. c4 {[%clk 0:02:59.6]}
2... e6 {[%clk 0:02:22.5]} 3. Nf3 {[%clk 0:02:58.8]} 3... Bb4+ {[%clk 0:02:17]}
4. Bd2 {[%clk 0:02:57.7]} 4... c5 {[%clk 0:02:15.8]} 5. dxc5 {[%clk 0:02:55.5]}
5... Bxc5 {[%clk 0:02:13.6]} 6. e3 {[%clk 0:02:54.6]} 6... Nc6 {[%clk
0:02:11.4]} 7. Be2 {[%clk 0:02:54.8]} 7... O-O {[%clk 0:02:11.2]} 8. O-O {[%clk
0:02:54.1]} 8... d5 {[%clk 0:02:10.7]} 9. a3 {[%clk 0:02:52.7]} 9... a6 {[%clk
0:02:09.4]} 10. Nc3 {[%clk 0:02:51.8]} 10... Ba7 {[%clk 0:02:09.7]} 11. Rc1
{[%clk 0:02:44.9]} 11... dxc4 {[%clk 0:01:57.7]} 12. Bxc4 {[%clk 0:02:43.9]}
12... Qe7 {[%clk 0:01:53]} 13. Qe2 {[%clk 0:02:42.5]} 1-0

[Event "*** Titled Tuesday Blitz"]
[Site "Chess.com"]
[Date "2020.05.05"]
[Round "6"]
[White "Stronger1799"]
[Black "Enriquack"]
[Result "1-0"]
[WhiteElo "2218"]
[BlackElo "2257"]
[TimeControl "180+1"]
[EndTime "11:03:13 PDT"]
[Termination "Stronger1799 won by resignation"]

1. e4 {[%clk 0:03:00.9]} 1... c5 {[%clk 0:03:00.2]} 2. Nf3 {[%clk 0:03:00.8]}
2... e6 {[%clk 0:03:00.3]} 3. d4 {[%clk 0:03:01.3]} 3... cxd4 {[%clk 0:03:01.1]}
4. Nxd4 {[%clk 0:03:02.2]} 4... Nc6 {[%clk 0:03:01.5]} 5. Nc3 {[%clk 0:03:02.5]}
5... Qc7 {[%clk 0:03:01.6]} 6. Be3 {[%clk 0:02:59.7]} 6... a6 {[%clk 0:03:01.1]}
7. f3 {[%clk 0:02:59.9]} 7... b5 {[%clk 0:02:59.5]} 8. Qd2 {[%clk 0:03:00.1]}
8... Nf6 {[%clk 0:02:57.9]} 9. O-O-O {[%clk 0:03:00.1]} 9... Be7 {[%clk
0:02:57.8]} 10. g4 {[%clk 0:03:00.1]} 10... Nxd4 {[%clk 0:02:55.6]} 11. Bxd4
{[%clk 0:02:59.7]} 11... b4 {[%clk 0:02:56]} 12. Ne2 {[%clk 0:02:59.3]} 12...
Rb8 {[%clk 0:02:55.2]} 13. g5 {[%clk 0:02:57.6]} 13... Nh5 {[%clk 0:02:54.4]}
14. Ng3 {[%clk 0:02:53]} 14... Nf4 {[%clk 0:02:41.9]} 15. Bxg7 {[%clk
0:02:45.2]} 15... Bxg5 {[%clk 0:02:40]} 16. Kb1 {[%clk 0:02:40.3]} 16... Rg8
{[%clk 0:02:35.3]} 17. Qd4 {[%clk 0:02:38.7]} 17... d6 {[%clk 0:02:05.1]} 18. e5
{[%clk 0:02:38.9]} 18... d5 {[%clk 0:02:00]} 19. h4 {[%clk 0:02:37.8]} 19...
Rxg7 {[%clk 0:01:57.6]} 20. hxg5 {[%clk 0:02:37.9]} 1-0

[Event "*** Titled Tuesday Blitz"]
[Site "Chess.com"]
[Date "2020.05.05"]
[Round "6"]
[White "JozefKneht"]
[Black "farzadbfd"]
[Result "0-1"]
[WhiteElo "2471"]
[BlackElo "2654"]
[TimeControl "180+1"]
[EndTime "11:03:21 PDT"]
[Termination "farzadbfd won by resignation"]

1. e4 {[%clk 0:03:00.9]} 1... e5 {[%clk 0:02:59.5]} 2. Nf3 {[%clk 0:03:00.9]}
2... Nc6 {[%clk 0:02:59.4]} 3. Bb5 {[%clk 0:03:00.6]} 3... a6 {[%clk 0:03:00.1]}
4. Ba4 {[%clk 0:03:00.7]} 4... Nf6 {[%clk 0:03:00.5]} 5. O-O {[%clk 0:03:01.1]}
5... b5 {[%clk 0:03:01.2]} 6. Bb3 {[%clk 0:02:59.9]} 6... Bc5 {[%clk 0:03:02.1]}
7. c3 {[%clk 0:02:59.8]} 7... d6 {[%clk 0:03:02.4]} 8. d4 {[%clk 0:03:00.3]}
8... Bb6 {[%clk 0:03:02.9]} 9. a4 {[%clk 0:03:00.3]} 9... Bb7 {[%clk 0:03:02.8]}
10. Re1 {[%clk 0:02:59.1]} 10... h6 {[%clk 0:03:02]} 11. axb5 {[%clk 0:02:32]}
11... axb5 {[%clk 0:03:01.1]} 12. Rxa8 {[%clk 0:02:32.9]} 12... Bxa8 {[%clk
0:03:02]} 13. Na3 {[%clk 0:02:28.8]} 13... exd4 {[%clk 0:02:22.6]} 14. cxd4
{[%clk 0:02:27.1]} 14... O-O {[%clk 0:02:20.8]} 15. Nxb5 {[%clk 0:02:25.4]}
15... Re8 {[%clk 0:02:20.9]} 16. Nc3 {[%clk 0:02:21.5]} 16... Na5 {[%clk
0:02:09.5]} 17. Bc2 {[%clk 0:02:20.2]} 17... c5 {[%clk 0:02:08.9]} 18. d5 {[%clk
0:02:14.7]} 18... Nc4 {[%clk 0:02:08.9]} 19. Qd3 {[%clk 0:02:02.2]} 19... Ne5
{[%clk 0:02:08]} 20. Nxe5 {[%clk 0:02:01.8]} 20... Rxe5 {[%clk 0:02:07.8]} 21.
f4 {[%clk 0:02:01]} 21... c4+ {[%clk 0:02:07.3]} 0-1

[Event "*** Titled Tuesday Blitz"]
[Site "Chess.com"]
[Date "2020.05.05"]
[Round "6"]
[White "warmoatmeal"]
[Black "827883"]
[Result "0-1"]
[WhiteElo "2031"]
[BlackElo "2221"]
[TimeControl "180+1"]
[EndTime "11:03:56 PDT"]
[Termination "827883 won by resignation"]

1. Nf3 {[%clk 0:03:00.9]} 1... d5 {[%clk 0:02:59.5]} 2. b3 {[%clk 0:02:56.2]}
2... Nf6 {[%clk 0:02:58.5]} 3. Bb2 {[%clk 0:02:57.1]} 3... c5 {[%clk 0:02:57.9]}
4. e3 {[%clk 0:02:51.8]} 4... e6 {[%clk 0:02:57.1]} 5. c4 {[%clk 0:02:49.5]}
5... Be7 {[%clk 0:02:56.1]} 6. cxd5 {[%clk 0:02:49.2]} 6... exd5 {[%clk
0:02:54.7]} 7. Be2 {[%clk 0:02:47.9]} 7... O-O {[%clk 0:02:53.9]} 8. O-O {[%clk
0:02:47.7]} 8... Nc6 {[%clk 0:02:53.7]} 9. d4 {[%clk 0:02:48.4]} 9... Bf5 {[%clk
0:02:47.9]} 10. Nbd2 {[%clk 0:02:46.7]} 10... Re8 {[%clk 0:02:41.6]} 11. a3
{[%clk 0:02:43.9]} 11... Rc8 {[%clk 0:02:40.4]} 12. dxc5 {[%clk 0:02:42]} 12...
Bxc5 {[%clk 0:02:39.6]} 13. b4 {[%clk 0:02:42.3]} 13... Bb6 {[%clk 0:02:37.3]}
14. Nb3 {[%clk 0:02:42.5]} 14... Ne4 {[%clk 0:02:33.1]} 15. Rc1 {[%clk
0:02:37.7]} 15... Bg6 {[%clk 0:02:27.4]} 16. Nfd4 {[%clk 0:02:30.8]} 16... Qe7
{[%clk 0:02:01.2]} 17. Bf3 {[%clk 0:02:16]} 17... Ne5 {[%clk 0:01:58]} 18. Be2
{[%clk 0:01:54.7]} 18... Nc4 {[%clk 0:01:55.1]} 19. Rc2 {[%clk 0:01:32.4]} 19...
Nxb2 {[%clk 0:01:52.3]} 20. Rxb2 {[%clk 0:01:32.2]} 20... Nc3 {[%clk 0:01:52.4]}
21. Bd3 {[%clk 0:01:28.4]} 21... Nxd1 {[%clk 0:01:50.1]} 0-1